fUST/lending_fUST_20260310
["ID","MTS","AMOUNT","RATE_DAILY","PERIOD"]
[408070739,1773107446019,-157.001548,0.00011,2]
[408070740,1773107446028,-157.001541,0.00011,2]
[408070741,1773107446037,-288.002836,0.00011,2]
[408070742,1773107446047,-288.002836,0.00011,2]
[408070743,1773107446056,-199.777832,0.00011,2]
[408070744,1773107446066,-288.002836,0.00011,2]
[408070745,1773107446075,-288.002828,0.00011,2]
[408070746,1773107446084,-151.0,0.00011,2]
[408070747,1773107446093,-151.0,0.00011,2]
[408070748,1773107446102,-157.362006,0.00011,2]
[408070749,1773107446111,-157.362006,0.00011,2]
[408070750,1773107446120,-151.0,0.00011,2]
[408070751,1773107446129,-157.362006,0.00011,2]
[408070752,1773107446139,-151.0,0.00011,2]
[408070753,1773107446148,-157.362005,0.00011,2]
[408070754,1773107446157,-570.12724,0.00011,2]
[408070755,1773107446167,-570.12724,0.00011,2]
[408070756,1773107446176,-177.895583,0.00011,2]
[408070757,1773107446195,-570.12724,0.00011,2]
[408070758,1773107446206,-177.895583,0.00011,2]
[408070759,1773107446216,-570.127242,0.00011,2]
[408070760,1773107446227,-177.895583,0.00011,2]
[408070761,1773107446237,-177.895592,0.00011,2]
[408070762,1773107446247,-500.0,0.00011,2]
[408070763,1773107446257,-500.0,0.00011,2]
[408070764,1773107446267,-500.0,0.00011,2]
[408070765,1773107446278,-500.0,0.00011,2]
[408070766,1773107446288,-500.0,0.00011,2]
[408070767,1773107446299,-500.0,0.00011,2]
[408070768,1773107446309,-500.0,0.00011,2]
[408070769,1773107446319,-500.0,0.00011,2]
[408070770,1773107446328,-500.0,0.00011,2]
[408070771,1773107446338,-500.0,0.00011,2]
[408070772,1773107446348,-500.0,0.00011,2]
[408070773,1773107446358,-500.0,0.00011,2]
[408070774,1773107446368,-500.0,0.00011,2]
[408070775,1773107446379,-500.0,0.00011,2]
[408070776,1773107446392,-500.0,0.00011,2]
[408070777,1773107446402,-500.0,0.00011,2]
[408070778,1773107446412,-500.0,0.00011,2]
[408070779,1773107446423,-500.0,0.00011,2]
[408070780,1773107446432,-500.0,0.00011,2]
[408070781,1773107446442,-500.0,0.00011,2]
[408070782,1773107446453,-500.0,0.00011,2]
[408070783,1773107446463,-500.0,0.00011,2]
[408070784,1773107446473,-500.0,0.00011,2]
[408070785,1773107446483,-500.0,0.00011,2]
[408070786,1773107446492,-500.0,0.00011,2]
[408070787,1773107446502,-500.0,0.00011,2]
[408070788,1773107446511,-500.0,0.00011,2]
[408070789,1773107446522,-500.0,0.00011,2]
[408070790,1773107446532,-500.0,0.00011,2]
[408070791,1773107446541,-702.464518,0.00011,2]
[408070792,1773107446551,-2901.6751445,0.00011134,2]
[408070793,1773107446560,-323.211348,0.00011134,2]
[408070794,1773107446570,-323.211348,0.00011134,2]
[408070795,1773107446580,-323.211348,0.00011134,2]
[408070796,1773107446589,-323.211343,0.00011134,2]
[408070797,1773107446599,-184.396942,0.00011134,2]
[408070798,1773107446609,-184.396942,0.00011134,2]
[408070799,1773107446619,-184.396942,0.00011134,2]
[408070800,1773107446629,-184.396932,0.00011134,2]
[408070801,1773107446639,-180.047099,0.00011134,2]
[408070802,1773107446648,-180.047099,0.00011134,2]
[408070803,1773107446658,-180.047099,0.00011134,2]
[408070804,1773107446667,-180.04709,0.00011134,2]
[408070805,1773107446677,-2193.0,0.00011573,2]
[408070806,1773107446686,-642.66,0.00011573,2]
[408070807,1773107446696,-1399.698,0.00011573,2]
[408070808,1773107446706,-436.0,0.00011573,2]
[408070809,1773107446716,-436.0,0.00011573,2]
[408070810,1773107446726,-151.0,0.00011573,2]
[408070811,1773107446736,-151.0,0.00011573,2]
[408070812,1773107446745,-151.0,0.00011573,2]
[408070813,1773107446755,-151.0,0.00011573,2]
[408070814,1773107446765,-151.0,0.00011573,2]
[408070815,1773107446774,-151.0,0.00011573,2]
[408070816,1773107446784,-3749.13430424,0.00011879,2]
[408070817,1773107446794,-4000.0,0.00012,2]
[408070818,1773107446803,-151.0,0.00012,2]
[408070819,1773107446814,-151.0,0.000121,2]
[408070820,1773107446824,-151.0,0.000123,2]
[408070821,1773107446835,-151.0,0.000124,2]
[408070822,1773107446845,-161.56171822,0.00012426,2]
[408070823,1773107446854,-150.38272174,0.00012426,2]
[408070824,1773107446863,-196.02248583,0.00012426,2]
[408070825,1773107446873,-231.73713392,0.00012426,2]
[408070826,1773107446882,-215.76558628,0.00012426,2]
[408070827,1773107446892,-500.0,0.00012426,2]
[408070828,1773107446901,-500.0,0.00012426,2]
[408070829,1773107446910,-154.95498317,0.00012426,2]
[408070830,1773107446920,-157.07534508,0.00012426,2]
[408070831,1773107446929,-203.52303638,0.00012426,2]
[408070832,1773107446940,-151.89260493,0.00012426,2]
[408070833,1773107446950,-151.8442086,0.00012426,2]
[408070834,1773107446960,-500.0,0.00012481,2]
[408070835,1773107446969,-500.0,0.00012481,2]
[408070836,1773107446979,-151.0,0.000125,2]
[408070837,1773107446988,-151.0,0.000125,2]
[408070838,1773107446997,-241.82741413,0.00012517,2]
[408070839,1773107447006,-500.0,0.00012536,2]
[408070840,1773107447015,-500.0,0.00012536,2]
[408070841,1773107447030,-340.3521596,0.0001259,2]
[408070842,1773107447039,-505.15463011,0.0001259,2]
[408070843,1773107447049,-151.0,0.000126,2]
[408070844,1773107447059,-3080.8631523,0.00012668,2]
[408070845,1773107447070,-151.0,0.000127,2]
[408070846,1773107447079,-933.5436477,0.00012702,2]
[408070847,1773107447089,-500.0,0.00012719,2]
[408070848,1773107447098,-970004.04691557,0.00012771,2]
[408070849,1773107447109,-3749.13430424,0.00012789,2]
[408070850,1773107447119,-505.51,0.000128,2]
[408070851,1773107447128,-151.0,0.000128,2]
[408070852,1773107447138,-151.0,0.000128,2]
[408070853,1773107447148,-1242.897266,0.00012803,2]
[408070854,1773107447158,-151.0,0.00012864,2]
[408070855,1773107447167,-156.587,0.00012864,2]
[408070856,1773107447178,-162.380719,0.00012864,2]
[408070857,1773107447187,-168.3888056,0.00012864,2]
[408070858,1773107447197,-174.61919141,0.00012864,2]
[408070859,1773107447206,-181.08010149,0.00012864,2]
[408070860,1773107447217,-537.6845,0.00012864,2]
[408070861,1773107447228,-187.78006525,0.00012864,2]
[408070862,1773107447237,-194.72792766,0.00012864,2]
[408070863,1773107447247,-201.93286099,0.00012864,2]
[408070864,1773107447259,-209.40437684,0.00012864,2]
[408070865,1773107447269,-217.15233878,0.00012864,2]
[408070866,1773107447280,-225.18697532,0.00012864,2]
[408070867,1773107447289,-233.51889341,0.00012864,2]
[408070868,1773107447299,-242.15909246,0.00012864,2]
[408070869,1773107447309,-251.11897888,0.00012864,2]
[408070870,1773107447318,-260.4103811,0.00012864,2]
[408070871,1773107447329,-2150.738,0.00012864,2]
[408070872,1773107447339,-270.0455652,0.00012864,2]
[408070873,1773107447348,-280.03725112,0.00012864,2]
[408070874,1773107447358,-290.39862941,0.00012864,2]
[408070875,1773107447367,-301.1433787,0.00012864,2]
[408070876,1773107447378,-5588.26668904,0.00012869,2]
[408070877,1773107447390,-225749.15625697,0.00012869,2]
[408070878,1773107447400,-151.0,0.000129,2]
[408070879,1773107447410,-151.0,0.000129,2]
[408070880,1773107447420,-151.0,0.000129,2]
[408070881,1773107447430,-151.0,0.000129,2]
[408070882,1773107447440,-151.0,0.000129,2]
[408070883,1773107447450,-151.0,0.000129,2]
[408070884,1773107447460,-151.0,0.000129,2]
[408070885,1773107447470,-151.0,0.000129,2]
[408070886,1773107447480,-151.0,0.000129,2]
[408070887,1773107447489,-3412.31597291,0.00012968,2]
[408070888,1773107448000,-500.0,9.245e-05,2]
[408070889,1773107448009,-475.07700847,9.245e-05,2]
[408070890,1773107448020,-24.92299153,9.245e-05,2]
[408070891,1773107448030,-372.77990117,9.245e-05,2]
[408070892,1773107448039,-22088.69451137,0.00012968,2]
[408070893,1773107448049,-6316.08850376,0.00012968,2]
[408070894,1773107448143,-6065.51297338,0.00012968,2]
[408070895,1773107448154,-337.2,0.00012968,2]
[408070896,1773107448166,-927.19930424,0.00012968,2]
[408070897,1773107448177,-198.32146962,0.00012968,2]
[408070898,1773107448187,-2749.76,0.00012968,2]
[408070899,1773107448197,-2749.76,0.00012968,2]
[408070900,1773107448206,-1689.08929667,0.00012968,2]
[408071115,1773108638024,-5000.0,9.801e-05,2]
[408071116,1773108638033,-557.0,9.801e-05,2]
[408071117,1773108638043,-169.25226884,9.95e-05,2]
[408071118,1773108638053,-1183.72561049,0.0001,2]
[408071119,1773108638063,-300.0,0.00010899,2]
[408071120,1773108638073,-1000.0,0.000109,2]
[408071121,1773108638084,-1000.0,0.000109,2]
[408071122,1773108638093,-1000.0,0.000109,2]
[408071123,1773108638103,-1000.0,0.000109,2]
[408071124,1773108638113,-3566.85753345,0.00011589,2]
[408071125,1773108638123,-2193.0,0.00011589,2]
[408071126,1773108638132,-639.0,0.00011589,2]
[408071127,1773108638142,-1392.0,0.00011589,2]
[408071128,1773108638151,-739.0,0.00011589,2]
[408071129,1773108638161,-175.727,0.00011589,2]
[408071130,1773108638171,-436.0,0.00011589,2]
[408071131,1773108638181,-199.71767723,0.0001195,2]
[408071132,1773108638190,-160.0,0.00012,2]
[408071133,1773108638199,-161.79197144,0.00012,2]
[408071134,1773108638208,-160.0,0.000125,2]
[408071135,1773108638218,-160.0,0.000125,2]
[408071136,1773108638227,-500.0,0.00012593,2]
[408071137,1773108638236,-14700.6349828,0.000126,2]
[408071138,1773108638245,-500.0,0.00012648,2]
[408071139,1773108638254,-500.0,0.00012681,2]
[408071140,1773108638263,-500.0,0.00012699,2]
[408071141,1773108638273,-460.94593082,0.00012699,2]
[408071142,1773108638282,-28556.34818701,0.000127,2]
[408071437,1773108643044,-4024.92299153,0.000127,2]
[408071443,1773108643098,-652.25,0.000127,2]
[408071696,1773108645907,-840.15790738,0.000127,2]
[408071939,1773109326228,-2000.0,0.0001136,2]
[408071940,1773109327511,-905.2144998,0.0001136,2]
[408071941,1773109327536,-1094.7855002,0.00011619,2]
[408071942,1773109328208,-2000.0,0.00011619,2]
[408071943,1773109328646,-1905.2144998,0.00011619,2]
[408071944,1773109328668,-94.7855002,0.00011736,2]
[408071945,1773109328966,-2000.0,0.00011736,2]
[408071946,1773109329299,-2000.0,0.00011736,2]
[408071947,1773109329617,-619.55125709,0.00011736,2]
[408071948,1773109329639,-300.0,0.00011854,2]
[408071949,1773109329660,-587.0,0.00011855,2]
[408071950,1773109329682,-165.92713409,0.00011915,2]
[408071951,1773109329704,-327.52160882,0.00011975,2]
[408071952,1773109329952,-895.80839118,0.00011975,2]
[408071953,1773109329971,-1104.19160882,0.00011975,2]
[408071954,1773109330300,-287.80839118,0.00011975,2]
[408071955,1773109330322,-639.0,0.00011975,2]
[408071956,1773109330621,-733.0,0.00011975,2]
[408071957,1773109332948,340.19160882,0.00011619,2]
[408071958,1773109332969,1256.31719526,0.00011619,2]
[408071959,1773109360472,-2000.0,0.000122,2]
[408071960,1773109361483,-515.2462716,0.000122,2]
[408071961,1773109361503,-1484.7537284,0.00012399,2]
[408071962,1773109361830,-2000.0,0.00012399,2]
[408071963,1773109362281,-1182.96450985,0.00012399,2]
[408071964,1773109362303,-488.218812,0.000124,2]
[408071965,1773109362323,-328.81667815,0.000124,2]
[408071966,1773109362594,-733.51643925,0.000124,2]
[408071967,1773109362617,-446.20235106,0.000124,2]
[408071968,1773109362637,-309.966,0.000124,2]
[408071969,1773109362658,-151.0,0.000125,2]
[408071970,1773109362679,-151.0,0.000125,2]
[408071971,1773109362700,-151.0,0.000125,2]
[408071972,1773109362723,-57.31520969,0.000125,2]
[408071973,1773109363074,-93.68479031,0.000125,2]
[408071974,1773109363096,-500.0,0.00012502,2]
[408071975,1773109363116,-500.0,0.00012557,2]
[408071976,1773109363137,-906.31520969,0.00012573,2]
[408071977,1773109363438,-2000.0,0.00012573,2]
[408071978,1773109363764,-1234.20967846,0.00012573,2]
[408071979,1773109363789,-765.79032154,0.000126,2]
[408071980,1773109364236,-30.86224411,0.000126,2]
[408071981,1773109364260,-1969.13775589,0.000126,2]
[408071982,1773109364544,-260.78006911,0.000126,2]
[408071983,1773109364566,-1739.21993089,0.000126,2]
[408071984,1773109364895,-113.33071257,0.000126,2]
[408071985,1773109364917,-1886.66928743,0.000126,2]
[408071986,1773109365213,-32.28492577,0.000126,2]
[408071987,1773109365235,-1967.71507423,0.000126,2]
[408071988,1773109365550,-73.51915995,0.000126,2]
[408071989,1773109365575,-500.0,0.00012612,2]
[408071990,1773109365598,-151.0,0.00012636,2]
[408071991,1773109365620,-156.587,0.00012636,2]
[408071992,1773109365642,-162.380719,0.00012636,2]
[408071993,1773109365665,-168.3888056,0.00012636,2]
[408071994,1773109365688,-537.6845,0.00012636,2]
[408071995,1773109365712,-174.61919141,0.00012636,2]
[408071996,1773109365734,-75.82062404,0.00012636,2]
[408071997,1773109365860,-105.25947745,0.00012636,2]
[408071998,1773109365882,-187.78006525,0.00012636,2]
[408071999,1773109365903,-194.72792766,0.00012636,2]
[408072000,1773109365923,-201.93286099,0.00012636,2]
[408072001,1773109365947,-209.40437684,0.00012636,2]
[408072002,1773109365968,-217.15233878,0.00012636,2]
[408072003,1773109365989,-225.18697532,0.00012636,2]
[408072004,1773109366009,-233.51889341,0.00012636,2]
[408072005,1773109366030,-242.15909246,0.00012636,2]
[408072006,1773109366051,-182.87799184,0.00012636,2]
[408072007,1773109366258,-68.24098704,0.00012636,2]
[408072008,1773109366280,-1931.75901296,0.00012636,2]
[408072009,1773109366715,-218.97898704,0.00012636,2]
[408072010,1773109366737,-260.4103811,0.00012636,2]
[408072011,1773109366758,-270.0455652,0.00012636,2]
[408072012,1773109366780,-280.03725112,0.00012636,2]
[408072013,1773109366801,-290.39862941,0.00012636,2]
[408072014,1773109366823,-301.1433787,0.00012636,2]
[408072015,1773109366848,-378.98580743,0.00012666,2]
[408072016,1773109367060,-121.01419257,0.00012666,2]
[408072017,1773109367080,-203.71409337,0.00012674,2]
[408072018,1773109367102,-500.0,0.00012674,2]
[408072019,1773109367124,-500.0,0.00012674,2]
[408072020,1773109367147,-500.0,0.00012674,2]
[408072021,1773109367170,-175.27171406,0.00012674,2]
[408072022,1773109367346,-324.72828594,0.00012674,2]
[408072023,1773109367367,-500.0,0.00012674,2]
[408072024,1773109367390,-500.0,0.00012674,2]
[408072025,1773109367412,-500.0,0.00012674,2]
[408072026,1773109367434,-175.27171406,0.00012674,2]
[408072027,1773109367672,-324.72828594,0.00012674,2]
[408072028,1773109367694,-500.0,0.00012674,2]
[408072029,1773109367717,-500.0,0.00012674,2]
[408072030,1773109367739,-500.0,0.00012674,2]
[408072031,1773109367761,-175.27171406,0.00012674,2]
[408072032,1773109368020,-324.72828594,0.00012674,2]
[408072033,1773109368042,-500.0,0.00012674,2]
[408072034,1773109368063,-461.87454154,0.00012674,2]
[408072035,1773109368085,-500.0,0.00012674,2]
[408072036,1773109368108,-213.39717252,0.00012674,2]
[408072037,1773109368352,-286.60282748,0.00012674,2]
[408072038,1773109368375,-500.0,0.00012674,2]
[408072039,1773109368399,-500.0,0.00012674,2]
[408072040,1773109368420,-423.9353463,0.00012674,2]
[408072041,1773109368440,-289.46182622,0.00012674,2]
[408072042,1773109369431,-210.53817378,0.00012674,2]
[408072043,1773109369458,-500.0,0.00012674,2]
[408072044,1773109369481,-500.0,0.00012674,2]
[408072045,1773109369502,-789.46182622,0.00012675,2]
[408072046,1773109369538,-175.42266278,0.00012675,2]
[408072047,1773109369559,-160.0,0.000127,2]
[408072048,1773109369580,-160.0,0.000127,2]
[408072049,1773109369601,-253.85501427,0.00012721,2]
[408072050,1773109369622,-867.73888918,0.00012739,2]
[408072051,1773109369642,-382.98343377,0.00012863,2]
[408072052,1773109369700,-117.01656623,0.00012863,2]
[408072053,1773109369723,-172.66215157,0.00012863,2]
[408072054,1773109369746,-427.03503009,0.00012864,2]
[408072055,1773109369769,-768.66305417,0.00012864,2]
[408072056,1773109369791,-514.62319794,0.00012864,2]
[408072057,1773109369901,-851.88889836,0.00012864,2]
[408072058,1773109369926,-1148.11110164,0.00012864,2]
[408072059,1773109370395,-987.06404883,0.00012864,2]
[408072060,1773109370417,-1012.93595117,0.00012864,2]
[408072061,1773109370885,-2000.0,0.00012864,2]
[408072062,1773109371222,-61.71626551,0.00012864,2]
[408072063,1773109371244,-1938.28373449,0.00012864,2]
[408072064,1773109372464,-2000.0,0.00012864,2]
[408072065,1773109373449,-246.65956044,0.00012864,2]
[408072066,1773109373471,-1753.34043956,0.00012864,2]
[408072067,1773109374254,-2000.0,0.00012864,2]
[408072068,1773109374369,-1712.70794565,0.00012864,2]
[408072069,1773109374392,-287.29205435,0.00012864,2]
[408072070,1773109374703,-2000.0,0.00012864,2]
[408072071,1773109375175,-2000.0,0.00012864,2]
[408072072,1773109397545,-151.0,0.00012636,2]
[408072073,1773109397569,-156.587,0.00012636,2]
[408072074,1773109397594,-162.380719,0.00012636,2]
[408072075,1773109397617,-168.3888056,0.00012636,2]
[408072076,1773109397640,-174.61919141,0.00012636,2]
[408072077,1773109397665,-181.08010149,0.00012636,2]
[408072078,1773109397687,-537.6845,0.00012636,2]
[408072079,1773109397710,-187.78006525,0.00012636,2]
[408072080,1773109397734,-194.72792766,0.00012636,2]
[408072081,1773109397756,-85.75168959,0.00012636,2]
[408072082,1773109398575,-116.1811714,0.00012636,2]
[408072083,1773109398599,-209.40437684,0.00012636,2]
[408072084,1773109398623,-217.15233878,0.00012636,2]
[408072085,1773109398646,-225.18697532,0.00012636,2]
[408072086,1773109398669,-233.51889341,0.00012636,2]
[408072087,1773109398691,-242.15909246,0.00012636,2]
[408072088,1773109398713,-251.11897888,0.00012636,2]
[408072089,1773109398734,-260.4103811,0.00012636,2]
[408072090,1773109398755,-244.86779181,0.00012636,2]
[408072091,1773109400185,-1905.87020819,0.00012636,2]
[408072092,1773109400209,-94.12979181,0.00012636,2]
[408072093,1773109402064,-175.91577339,0.00012636,2]
[408072094,1773109402089,-280.03725112,0.00012636,2]
[408072095,1773109402110,-290.39862941,0.00012636,2]
[408072096,1773109402132,-301.1433787,0.00012636,2]
[408072097,1773109402154,-300.0,0.00012863,2]
[408072098,1773109402177,-652.50496738,0.00012864,2]
[408072099,1773109403512,-1971.25249831,0.00012864,2]
[408072100,1773109403536,-28.74750169,0.00012864,2]
[408072101,1773109405164,-126.99916288,0.00012864,2]
[408072102,1773109405185,-280.34399623,0.00012864,2]
[408072103,1773109405207,-498.38932663,0.00012864,2]
[408072104,1773109405228,-778.73332285,0.00012864,2]
[408072105,1773109405248,-315.53419141,0.00012864,2]
[408072106,1773109406713,-805.8417935,0.00012864,2]
[408072107,1773109406735,-1194.1582065,0.00012864,2]
[408072108,1773109408211,-332.15910629,0.00012864,2]
[408072109,1773109408232,-1667.84089371,0.00012864,2]
[408072112,1773109802332,155.53,2e-05,2]
[408072113,1773109802696,155.53,2e-05,2]
[408072114,1773109802964,155.53,2e-05,2]
[408072115,1773109803248,155.53,2e-05,2]
[408072116,1773109803523,155.53,2e-05,2]
[408072117,1773109803796,155.53,2e-05,2]
[408072118,1773109804215,155.53,2e-05,2]
[408072119,1773109804488,155.53,2e-05,2]
[408072120,1773109804827,155.53,2e-05,2]
[408072121,1773109805100,155.53,2e-05,2]
[408072122,1773109805369,155.53,2e-05,2]
[408072123,1773109805644,155.53,2e-05,2]
[408072124,1773109805929,155.53,2e-05,2]
[408072125,1773109824030,-155.53,2.1e-05,2]
[408072126,1773109824060,-155.53,2.1e-05,2]
[408072127,1773109824094,-155.53,2.1e-05,2]
[408072128,1773109824126,-155.53,2.1e-05,2]
[408072129,1773109824164,-155.53,2.1e-05,2]
[408072130,1773109824195,-155.53,2.1e-05,2]
[408072131,1773109824225,-55.93054874,2.1e-05,2]
[408072132,1773109824239,-99.59945126,2.1e-05,2]
[408072133,1773109824249,-55.93054874,2.1e-05,2]
[408072134,1773109824266,-99.59945126,2.1e-05,2]
[408072135,1773109824276,-55.93054874,2.1e-05,2]
[408072136,1773109824292,-99.59945126,2.1e-05,2]
[408072137,1773109824305,-55.93054874,2.1e-05,2]
[408072138,1773109824321,-99.59945126,2.1e-05,2]
[408072139,1773109824330,-55.93054874,2.1e-05,2]
[408072140,1773109824342,-99.59945126,2.1e-05,2]
[408072141,1773109824353,-55.93054874,2.1e-05,2]
[408072142,1773109824368,-99.59945126,2.1e-05,2]
[408072143,1773109824378,-55.93054874,2.1e-05,2]
[408072144,1773109824390,-99.59945126,2.1e-05,2]
[408072145,1773109824404,-55.93054874,2.1e-05,2]
[408072172,1773109832218,-99.59945126,2.1e-05,2]
[408072174,1773109832228,-155.53,2.1e-05,2]
[408072176,1773109832239,-155.53,2.1e-05,2]
[408072178,1773109832248,-155.53,2.1e-05,2]
[408072180,1773109832261,-155.53,2.1e-05,2]
[408072182,1773109832271,-155.53,2.1e-05,2]
[408072184,1773109832280,-155.53,2.1e-05,2]
[408072186,1773109832290,-155.53,2.1e-05,2]
[408072189,1773109832300,-155.53,2.1e-05,2]
[408072191,1773109832309,-155.53,2.1e-05,2]
[408072193,1773109832319,-155.53,2.1e-05,2]
[408072195,1773109832328,-155.53,2.2e-05,2]
[408072197,1773109832340,-155.53,2.2e-05,2]
[408072199,1773109832350,-155.53,2.2e-05,2]
[408072201,1773109832360,-155.53,2.2e-05,2]
[408072203,1773109832370,-155.53,2.2e-05,2]
[408072205,1773109832380,-155.53,2.2e-05,2]
[408072207,1773109832389,-155.53,2.2e-05,2]
[408072209,1773109832401,-155.53,2.2e-05,2]
[408072211,1773109832411,-155.53,2.2e-05,2]
[408072213,1773109832421,-155.53,2.2e-05,2]
[408072215,1773109832430,-155.53,2.2e-05,2]
[408072217,1773109832444,-155.53,2.2e-05,2]
[408072219,1773109832454,-155.53,2.2e-05,2]
[408072221,1773109832464,-436.0,0.00011992,2]
[408072223,1773109832474,-733.0,0.00011992,2]
[408072225,1773109832483,-589.0,0.00011992,2]
[408072227,1773109832493,-168.71871775,0.00012106,2]
[408072229,1773109832503,-551.31939351,0.0001222,2]
[408072231,1773109832513,-500.0,0.0001222,2]
[408072233,1773109832522,-158.21503848,0.0001222,2]
[408072235,1773109832532,-300.0,0.0001222,2]
[408072237,1773109832542,-634.13138691,0.0001222,2]
[408072306,1773109838341,-565.86861309,0.0001222,2]
[408072307,1773109838352,-325.71641279,0.00012221,2]
[408072308,1773109838361,-2523.09596604,0.00012221,2]
[408072309,1773109838372,-3114.93329141,0.00012221,2]
[408072310,1773109838383,-3769.06928261,0.00012221,2]
[408072311,1773109838393,-4485.50393963,0.00012221,2]
[408072312,1773109838408,-5264.23726249,0.00012221,2]
[408072313,1773109838417,-4102.93721544,0.00012221,2]
[408072314,1773109838429,-2002.33203573,0.00012221,2]
[408072315,1773109838439,-117.31873885,0.00012221,2]
[408072317,1773109838538,-1914.81317151,0.00012221,2]
[408072330,1773109840911,-2448.20888545,0.00012221,2]
[408072331,1773109840931,-889.42,0.00012221,2]
[408072334,1773109842859,-76.60480975,0.00012221,2]
[408072367,1773109843495,-2179.44610379,0.00012099,2]
[408072368,1773109843506,-697.17466926,0.00012221,2]
[408072378,1773109846135,-865.05963086,0.00012221,2]
[408072379,1773109846145,-3846.64942091,0.00012221,2]
[408072380,1773109896928,55773.99165445,2.001e-05,2]
[408072399,1773111003131,185.78,2e-05,2]
[408072429,1773111037246,-708.51787915,9e-05,2]
[408072436,1773111037301,-1163.26236751,9e-05,2]
[408072443,1773111037356,-1110.70992103,9e-05,2]
[408072523,1773111038416,-39728.03157221,9e-05,2]
[408072525,1773111038426,-5000.0,9.509e-05,2]
[408072527,1773111038436,-555.0,9.605e-05,2]
[408072529,1773111038447,-187.50052377,9.703e-05,2]
[408072531,1773111038458,-300.0,9.899e-05,2]
[408072533,1773111038468,-1200.0,9.899e-05,2]
[408072535,1773111038477,-2095.0422949,9.9e-05,2]
[408072537,1773111038487,-4127.57980511,9.954e-05,2]
[408072539,1773111038497,-500.0,0.0001,2]
[408072541,1773111038507,-500.0,0.0001,2]
[408072543,1773111038516,-500.0,0.0001,2]
[408072545,1773111038530,-500.0,0.0001,2]
[408072547,1773111038540,-500.0,0.0001,2]
[408072549,1773111038550,-701.35719339,0.0001,2]
[408072551,1773111038560,-500.0,0.0001,2]
[408072553,1773111038570,-500.0,0.0001,2]
[408072555,1773111038580,-500.0,0.0001,2]
[408072556,1773111038589,-500.0,0.0001,2]
[408072558,1773111038599,-717.07597017,0.0001,2]
[408072560,1773111038608,-979.72900078,0.0001,2]
[408072561,1773111038617,-500.0,0.000102,2]
[408072562,1773111038627,-500.0,0.000102,2]
[408072563,1773111038636,-9002.15721218,0.00010213,2]
[408072564,1773111038646,-10082.29148031,0.00010528,2]
[408072565,1773111038656,-761.92488983,0.00010668,2]
[408072566,1773111038665,-300.0,0.00010674,2]
[408072567,1773111038675,-420.0,0.00010889,2]
[408072568,1773111038684,-921.0,0.00010889,2]
[408072569,1773111038694,-461.72404363,0.00010981,2]
[408072570,1773111038704,-500.0,0.00010998,2]
[408072571,1773111038713,-500.0,0.00010998,2]
[408072572,1773111038723,-365.21343925,0.00010998,2]
[408072573,1773111038732,-500.0,0.00010998,2]
[408072574,1773111038741,-650.13735275,0.00010998,2]
[408072575,1773111038751,-500.0,0.00010998,2]
[408072576,1773111038760,-500.0,0.00010998,2]
[408072577,1773111038769,-500.0,0.00010998,2]
[408072579,1773111038780,-500.0,0.00010998,2]
[408072581,1773111038789,-500.0,0.00010998,2]
[408072582,1773111038798,-500.0,0.00010998,2]
[408072583,1773111038807,-500.0,0.00010998,2]
[408072584,1773111038817,-500.0,0.00010998,2]
[408072586,1773111038826,-500.0,0.00010998,2]
[408072588,1773111038836,-500.0,0.00010998,2]
[408072589,1773111038857,-500.0,0.00010998,2]
[408072590,1773111038868,-500.0,0.00010998,2]